[Event "Mongolian Championship Open 2022"]
[Site "Chingis Khentii"]
[Date "2022.05.15"]
[Round "3.3"]
[White "Amilal Munkhdalai"]
[Black "Agibileg, Uurtsaikh"]
[Result "0-1"]
[ECO "B44"]
[WhiteElo "2033"]
[BlackElo "2440"]
[Annotator "TA"]
[PlyCount "72"]
[EventDate "2022.05.12"]
[EventType "tourn"]
[EventCountry "MGL"]
[SourceTitle "playchess.com"]
[Source "ChessBase"]
[SourceQuality "1"]
[TimeControl "40/5400+30:1800+30"]

{[%evp 15,72,0,8,8,11,4,15,18,21,16,25,16,17,-8,-2,0,16,17,13,10,10,10,9,8,33,17,18,0,14,7,57,45,99,29,105,97,95,104,106,109,206,78,65,-154,-138,-167,0,-184,-181,-179,0,-1044,-1067,-970,-390,-5410,-706,-29983,-29972]} 1. e4 {[%emt 0:00:02]} c5 {[%emt 0:00:30]} 2. Nf3 {[%emt 0:00:13][%cal Bg1f3,Bf3d4,Bd4b5][%mdl 32]} e6 {[%emt 0:00:32]} 3. d4 {[%emt 0:00:04]} cxd4 {[%emt 0:00:36]} 4. Nxd4 {[%emt 0:00:05]} Nc6 {[%emt 0:00:21]} 5. Nb5 {[%emt 0:00:05]} d6 {[%emt 0:00:45]} 6. c4 {[%emt 0:00:06]} Nf6 {[%emt 0:00:21]} 7. N1c3 {[%emt 0:00:09]} a6 {[%emt 0:00:13]} 8. Nd4 {[%emt 0:00:06] is now more promising than 8.Na3.} Bd7 {[%emt 0:00:26]} 9. Be3 {[%emt 0:00:24] B44: Sicilian: Taimanov: 5 Nb5.} Rc8 {[%emt 0:00:10]} 10. Nxc6 {[%emt 0:00:09]} Bxc6 {[%emt 0:00:10]} 11. Bd3 {[%emt 0:00:07] The position is equal.} Be7 {[%emt 0:08:34]} 12. O-O {[%emt 0:00:09]} O-O {[%emt 0:00:22]} 13. Qe2 {[%emt 0:00:24]} Nd7 {[%emt 0:10:46] [#]} 14. b4 $146 {[%emt 0:04:33]} ({Predecessor:} 14. Rac1 Bf6 15. Rfd1 Qa5 16. Qd2 Nc5 17. Nd5 Qd8 18. Nxf6+ Qxf6 19. b3 Nxe4 20. Bxe4 Bxe4 21. Qxd6 {½-½ (43) Turoczi,P (1717)-Quinones Borda,J (2267) LSS email 2017}) 14... Ne5 {[%emt 0:03:47]} 15. Rac1 {[%emt 0:03:02]} f5 {[%emt 0:05:44]} 16. exf5 {[%emt 0:04:23]} Nxd3 {[%emt 0:00:20]} (16... exf5 17. f4 Nxd3 18. Qxd3 $16) 17. Qxd3 {[%emt 0:00:05]} Rxf5 {[%emt 0:00:09]} 18. a4 {[%emt 0:12:36]} Bf8 {[%emt 0:15:53]} 19. b5 {[%emt 0:05:59]} axb5 {[%emt 0:01:53]} 20. axb5 {[%emt 0:00:20]} Be8 {[%emt 0:01:43]} 21. Rfd1 {[%emt 0:10:36]} Qh4 {[%emt 0:12:49]} 22. Ne2 {[%emt 0:08:25]} Rh5 {[%emt 0:11:25]} (22... Bg6 $11 23. Qb3 Rf7) 23. h3 $14 {[%emt 0:05:32]} d5 {[%emt 0:02:09]} (23... Qe7 $14) 24. c5 {[%emt 0:09:56]} ({Much worse is} 24. cxd5 $6 Rxc1 25. Rxc1 Rxd5 $11) (24. Nf4 $16) 24... Rf5 {[%emt 0:04:37]} (24... Qa4 $11 {remains equal.}) 25. Nd4 {[%emt 0:03:36]} Rf6 {[%emt 0:00:54]} 26. c6 {[%emt 0:01:21]} bxc6 {[%emt 0:03:56]} 27. Nxc6 {[%emt 0:01:08]} Rc7 {[%emt 0:00:30] Prevents Ne7+.} (27... Bxc6 $16 28. Rxc6 Rxc6 29. bxc6 Bd6) 28. Qb3 {[%emt 0:14:54]} (28. Bd4 $18) 28... Bd6 $16 {[%emt 0:04:19]} 29. Na5 $2 {[%emt 0:03:36]} (29. Rd4 $14 {keeps the upper hand.} Qh5 30. Ra4) 29... Rg6 $1 $17 {[%emt 0:01:45] ...Qxh3 is the strong threat.} 30. Kf1 {[%emt 0:08:31] Hoping for Rxc7.} Qe4 $2 {[%emt 0:00:49]} (30... Rf7 $1 $19 31. Rc8 Rf8) 31. f3 {[%emt 0:00:35]} (31. Rxc7 $1 $11 {and White has nothing to worry.} Bxc7 32. f3) 31... Qe5 $1 $19 {[%emt 0:01:09] And now ...Qh2 would win.} (31... Bxb5+ $2 32. Qxb5 Qxe3 33. Qe8+ Bf8 34. Rxc7 $18) 32. Rxc7 {[%emt 0:02:33] [#]} Bxc7 $40 {[%emt 0:01:46][%mdl 128] Black mounts an attack.} (32... Qh2 $1 $19 {[%cal Rh2g2]} 33. Rc2 Qh1+ 34. Ke2 (34. Bg1 $2 Bc5 $19) 34... Rxg2+ 35. Bf2 {[#]} Rxf2+ $1 {[%mdl 512]} 36. Kxf2 Qxd1) 33. b6 $2 {[%emt 0:00:38][%mdl 8192]} (33. Nc6 $11 Bxc6 34. bxc6) 33... Qh2 {[%emt 0:01:36]} 34. g4 {[%emt 0:02:06]} Rf6 {[%emt 0:03:40]} (34... Bg3 $142 {( -> ...Rf6)} 35. Rd2 Qh1+ 36. Bg1 Rf6) 35. Bf2 $2 {[%emt 0:00:55] [#]} (35. bxc7 Bb5+ 36. Rd3 Bxd3+ 37. Qxd3 Rxf3+ 38. Ke1 Qxc7 39. Ke2) 35... Bb5+ $1 {[%emt 0:01:26][%mdl 512] A strong pair of Bishops.} 36. Ke1 {[%emt 0:00:35] [#]} (36. Qxb5 Qh1+) 36... Bxb6 $1 {[%emt 0:00:27][%mdl 512] Weighted Error Value: White=0.95/Black=0.49} 0-1

[Event "Mongolian Championship Open 2022"]
[Site "Chingis Khentii"]
[Date "2022.05.15"]
[Round "3.4"]
[White "Amartuvshin, Ganzorig"]
[Black "Battulga, Namkhai"]
[Result "1/2-1/2"]
[ECO "D15"]
[WhiteElo "2350"]
[BlackElo "2402"]
[Annotator "TA"]
[PlyCount "141"]
[EventDate "2022.05.12"]
[EventType "tourn"]
[EventCountry "MGL"]
[SourceTitle "playchess.com"]
[Source "ChessBase"]
[SourceQuality "1"]
[TimeControl "40/5400+30:1800+30"]

{[%evp 9,141,27,35,23,33,-12,-6,-31,-10,-33,-16,-25,5,-37,-33,-44,-35,-75,6,-35,0,0,-2,-2,0,0,0,0,0,0,0,0,0,-11,-10,-11,-11,-35,-35,-35,-35,-35,-35,-35,-35,-62,-62,-62,-62,-155,-142,-209,-202,-203,-197,-234,-141,-116,-125,-123,-114,-190,-177,-184,-177,-171,-139,-239,-184,-186,-177,-164,-155,-177,-94,-169,-156,-298,-284,-326,-314,-348,-223,-215,-210,-471,-476,-719,-705,-903,-791,-1029,-997,-692,-635,-629,-608,-586,-566,-514,-503,-464,-479,-902,-865,-897,-882,-681,-487,-996,-660,-660,0,0,0,0,-25,0,0,0,0,0,0,0,0,0,0,0,0,0,0,0,0,0]} 1. d4 {[%emt 0:00:02]} d5 {[%emt 0:00:21]} 2. c4 {[%emt 0:00:05]} c6 {[%emt 0:00:05]} 3. Nc3 {[%emt 0:00:05]} Nf6 {[%emt 0:00:06]} 4. e3 {[%emt 0:00:05]} a6 {[%emt 0:01:41]} 5. Nf3 {[%emt 0:00:23]} b5 {[%emt 0:00:21]} 6. c5 {[%emt 0:01:52] D15: Slav Defence: 4 Nc3 a6 and gambit lines after 4 Nc3 dxc4.} g6 {[%emt 0:09:37]} 7. Qb3 {[%emt 0:05:04]} a5 {[%emt 0:32:45]} 8. Ne5 {[%emt 0:14:56][%cal Oc3b5]} Bg7 {[%emt 0:09:18]} (8... a4 $5 {[%cal Ra4b3]} 9. Qc2 Bg7 $11) 9. Be2 {[%emt 0:15:51]} O-O {[%emt 0:03:08]} 10. O-O {[%emt 0:00:05] [#]} Be6 $146 {[%emt 0:00:52]} ({Predecessor:} 10... Qc7 11. Rd1 Bf5 12. Bd2 Na6 13. Nxc6 Qxc6 14. Bxb5 Qe6 15. Na4 Nc7 16. Nb6 Ra7 {0-1 (28) Voiteanu,C (2298)-Diaz Nunez,A (2225) Calvia 2012}) 11. Bd2 {[%emt 0:00:59][%cal Bc1d2,Bd2e1,Be1h4][%mdl 32]} Ne4 {[%emt 0:02:16]} 12. Qc2 {[%emt 0:16:08]} (12. Nxe4 dxe4 13. Qc2 f6 14. Nxc6 (14. Bg4 $2 Bd5 $19) 14... Nxc6 $17) 12... f6 {[%emt 0:13:31]} 13. Nf3 {[%emt 0:01:01]} (13. Nxe4 dxe4 14. Nxc6 (14. Bg4 $2 Bd5 $19) 14... Nxc6 $17) 13... f5 {[%emt 0:00:58]} (13... Nxd2 $17 14. Nxd2 Bf7) 14. Be1 {[%emt 0:04:35]} Nd7 {[%emt 0:05:50][%cal Bb8d7,Bd7f6,Bf6e4][%mdl 32]} 15. Nd2 {[%emt 0:08:03]} Nxd2 {[%emt 0:02:23]} 16. Qxd2 {[%emt 0:00:38]} Bf7 {[%emt 0:01:29]} 17. f4 $1 {[%emt 0:00:26] Prevents e5.} Nf6 {[%emt 0:00:11]} 18. Bh4 {[%emt 0:00:55]} Ne4 {[%emt 0:00:18]} 19. Qe1 {[%emt 0:00:48]} Qd7 {[%emt 0:00:53]} 20. a3 {[%emt 0:02:00]} Bf6 {[%emt 0:00:30]} 21. Nxe4 {[%emt 0:01:08]} dxe4 {[%emt 0:04:22]} 22. Bxf6 exf6 {[%emt 0:00:01]} 23. b4 {[%emt 0:02:02]} (23. a4 $5 {[%cal Ra4b5]} b4 24. Rc1 $11) 23... a4 {[%emt 0:02:16]} 24. Rc1 {[%emt 0:01:20]} Bd5 {[%emt 0:00:12]} 25. Qh4 {[%emt 0:00:55]} h5 {[%emt 0:01:25]} 26. h3 {[%emt 0:00:29]} Kf7 {[%emt 0:00:21]} 27. Rf2 {[%emt 0:01:46]} Rh8 {[%emt 0:00:07]} 28. Bf1 {[%emt 0:01:03]} Rag8 {[%emt 0:00:31]} 29. Rfc2 {[%emt 0:00:39]} (29. Be2 $15) 29... Qc7 $17 {[%emt 0:01:03]} 30. Rd2 {[%emt 0:02:04]} (30. Kh1 $17) 30... Ke6 {[%emt 0:02:23]} 31. Qf2 {[%emt 0:01:37]} h4 {[%emt 0:00:24]} 32. Be2 {[%emt 0:00:23]} Ke7 {[%emt 0:03:09]} 33. Rf1 {[%emt 0:00:14]} Rf8 {[%emt 0:00:52]} 34. Bd1 {[%emt 0:01:07]} Kd8 {[%emt 0:01:09]} 35. g4 {[%emt 0:04:09]} (35. Qe1 $17) 35... hxg3 $1 $19 {[%emt 0:00:45]} 36. Qxg3 {[%emt 0:00:08]} Rh6 {[%emt 0:00:31]} 37. Rh2 {[%emt 0:03:57]} Rfh8 {[%emt 0:00:07][%cal Og6g5]} 38. Kf2 {[%emt 0:01:07]} (38. h4 $17 {was necessary.}) 38... Qh7 {[%emt 0:00:15]} 39. Rg1 {[%emt 0:00:41]} Bf7 {[%emt 0:01:05]} 40. Rgh1 {[%emt 0:00:00]} Bg8 {[%emt 0:00:00][%cal Bf7g8,Bg8d5,Bd5c4][%mdl 32]} 41. Be2 {[%emt 0:05:05]} Kc7 {[%emt 0:04:30]} (41... Ke7 $19 42. Qg1 Qf7) 42. Rd1 {[%emt 0:03:21]} (42. Qg1 $17) 42... Qd7 {[%emt 0:02:21] White must now prevent ...Qd5.} 43. d5 {[%emt 0:01:40]} (43. Rb1 $17 {was called for.}) 43... Bxd5 {[%emt 0:00:10]} 44. Ke1 {[%emt 0:00:12]} Qf7 {[%emt 0:03:45]} 45. Bf1 {[%emt 0:01:05]} Rd8 {[%emt 0:01:06]} 46. Rhd2 {[%emt 0:00:17]} Rhh8 {[%emt 0:00:12][%cal Bh6h8,Bh8d8,Bd8d7][%mdl 32]} 47. Rg2 $2 {[%emt 0:03:36]} (47. Be2 {is a better defense.}) 47... Bc4 {[%emt 0:09:29]} 48. Rxd8 {[%emt 0:06:18]} (48. Rd6 $142 Rxd6 49. cxd6+ Kxd6 50. Qxg6 Qxg6 51. Rxg6 Bxf1 52. Kxf1) 48... Rxd8 {[%emt 0:00:09]} (48... Kxd8 49. Bxc4 bxc4 50. Qxg6 Qxg6 51. Rxg6 $11) 49. Qxg6 {[%emt 0:00:10] [#]} Qd5 $1 {[%emt 0:01:04]} 50. Qh5 {[%emt 0:00:14] Against Qd1+} Rd7 {[%emt 0:03:26]} 51. Bxc4 {[%emt 0:04:24]} Qxc4 {[%emt 0:01:49]} 52. Qxf5 {[%emt 0:00:27][%mdl 4096] Endgame KQR-KQR} Qc3+ {[%emt 0:07:53]} 53. Kf2 {[%emt 0:00:07]} Qd2+ {[%emt 0:00:54][%mdl 64] Deflection} 54. Kg1 {[%emt 0:00:10]} Qxe3+ {[%emt 0:00:08]} 55. Kh2 {[%emt 0:00:13]} Qd4 {[%emt 0:00:19]} 56. Re2 {[%emt 0:04:51]} (56. Qg4 $142 e3 57. h4) 56... e3 {[%emt 0:01:00] Hoping for ...Rg7.} (56... Rg7 57. Rg2 Rd7 58. h4 $19) 57. Kg3 {[%emt 0:00:20]} Rg7+ {[%emt 0:02:30]} 58. Kf3 {[%emt 0:00:12]} Qd1 {[%emt 0:00:29] ( -> ...Qf1+)} 59. Qxf6 {[%emt 0:00:41]} (59. Qe6 $142 Qf1+ 60. Kxe3) 59... Qd5+ {[%emt 0:00:38]} 60. Kxe3 {[%emt 0:00:17] [#]} Rg3+ {[%emt 0:00:12]} (60... Qb3+ $1 $19 61. Ke4 Qc4+ 62. Kf3 Qd3+ 63. Re3 Qd1+ 64. Re2 (64. Kf2 Qg1+ 65. Ke2 Rg2+ 66. Kf3 Rg3+ 67. Ke4 Qxe3+ 68. Kf5 Qd3+ 69. Ke6 Qd7+ 70. Ke5 Re3#) 64... Qd3+ 65. Re3 Qd5+ 66. Re4 Qb3+ 67. Re3 Qd5+ 68. Re4 Qb3+ 69. Re3 Qd5+) 61. Kf2 $11 {[%emt 0:00:17] White threatens Re7+ and mate.} Rg2+ {[%emt 0:00:43]} 62. Ke1 {[%emt 0:00:07]} Rg1+ {[%emt 0:00:16]} 63. Kf2 {[%emt 0:00:06] Intending Re7+ and mate.} Qg2+ {[%emt 0:00:47] The position is equal.} 64. Ke3 {[%emt 0:00:07]} Qxh3+ {[%emt 0:00:09]} 65. Kd2 {[%emt 0:01:04] Dancing on a razor blade.} (65. Ke4 Rd1 66. Re3 (66. Qe7+ $2 Rd7 $19) 66... Qh7+ 67. f5 Qh1+ 68. Rf3 (68. Kf4 $2 Rf1+ 69. Kg5 Rg1+ 70. Kf4 Rf1+ 71. Kg5 Rg1+ 72. Kf4 Rf1+ $19) 68... Re1+ 69. Kf4 Qh2+ 70. Rg3 Qf2+ 71. Rf3 (71. Kg4 Re4+ 72. Kh5 Qxg3 73. Qf7+ Kc8 74. Qf6 Qh3+ 75. Kg6 Rg4+) 71... Qd2+ 72. Kg4 Rg1+ 73. Kh5 (73. Rg3 Qe2+ 74. Kf4 Qf2+ 75. Rf3 Qh2+ 76. Ke4 Re1+ 77. Re3 Qg2+ 78. Kf4 Rf1+) 73... Rh1+ 74. Kg4 Qg2+ 75. Kf4 Qh2+ 76. Rg3 Qd2+ 77. Kg4 Qe2+ 78. Kg5 Qh5+ 79. Kf4 Rf1+ 80. Ke3 Qe8+ 81. Qe6 Re1+ 82. Kf2 Rxe6 $19) 65... Qd7+ {[%emt 0:00:22]} 66. Kc3 {[%emt 0:00:52]} Rg3+ {[%emt 0:00:14]} 67. Kb2 {[%emt 0:00:09]} Rb3+ {[%emt 0:01:03]} 68. Kc1 {[%emt 0:00:57] And now Re7 would win.} Rb1+ {[%emt 0:00:01][%mdl 64] Decoy} 69. Kxb1 {[%emt 0:00:15] Re7 would kill now.} Qd1+ {[%emt 0:00:00]} 70. Kb2 {[%emt 0:00:26] Threatening mate with Re7+.} Qxe2+ {[%emt 0:00:01]} 71. Kc1 {[%emt 0:00:44] And White is the lucky defender.  Weighted Error Value: White=0.52/Black=0.26 (precise)} 1/2-1/2

[Event "Mongolian Championship Open 2022"]
[Site "Chingis Khentii"]
[Date "2022.05.15"]
[Round "3.5"]
[White "Enkhnar, Enkhbaatar"]
[Black "Batsuren, Dambasuren"]
[Result "1/2-1/2"]
[ECO "D38"]
[WhiteElo "2368"]
[BlackElo "2501"]
[Annotator "TA"]
[PlyCount "61"]
[EventDate "2022.05.12"]
[EventType "tourn"]
[EventCountry "MGL"]
[SourceTitle "playchess.com"]
[Source "ChessBase"]
[SourceQuality "1"]
[TimeControl "40/5400+30:1800+30"]

{[%evp 16,61,5,0,0,0,0,0,0,0,0,0,0,0,0,0,6,4,2,4,6,10,7,7,7,0,6,0,0,0,6,0,0,2,6,4,4,5,8,4,6,0,8,9,10,0,0,-93]} 1. d4 {[%emt 0:00:30]} Nf6 {[%emt 0:01:36]} 2. c4 {[%emt 0:00:03]} e6 {[%emt 0:00:22]} 3. Nf3 {[%emt 0:00:20]} d5 {[%emt 0:00:46]} 4. Nc3 {[%emt 0:00:31]} Bb4 {[%emt 0:00:14]} 5. Bg5 {[%emt 0:01:13]} h6 {[%emt 0:03:49]} 6. Bxf6 {[%emt 0:00:34]} Qxf6 {[%emt 0:00:36]} 7. e3 {[%emt 0:00:06]} O-O {[%emt 0:01:48]} 8. Bd3 {[%emt 0:01:22]} dxc4 {[%emt 0:07:07]} 9. Bxc4 {[%emt 0:00:14] The position is equal.} b6 {[%emt 0:00:29] D38: Queen's Gambit Declined: Ragozin Defence (4 Nf3 Bb4).} 10. Qb3 {[%emt 0:02:25]} Bxc3+ {[%emt 0:03:16]} 11. Qxc3 {[%emt 0:00:17]} Bb7 {[%emt 0:00:10]} 12. Be2 {[%emt 0:00:26]} Rc8 {[%emt 0:00:37]} 13. O-O {[%emt 0:01:46]} c5 {[%emt 0:03:34]} 14. Rac1 {[%emt 0:00:45]} Nd7 {[%emt 0:00:56]} 15. Rfd1 {[%emt 0:01:17][%cal Bf1d1,Bd1c1,Bc1c7][%mdl 32] [#]} cxd4 $146 {[%emt 0:09:14]} ({Predecessor:} 15... a5 16. dxc5 Qxc3 17. Rxc3 Nxc5 18. Bb5 Ne4 19. Rxc8+ Rxc8 20. Ne1 Bd5 21. f3 Nd6 22. Be2 f5 23. Kf2 Kf8 {0-1 (23) Benone,M (1816)-Denisov,T (1953) FICGS email 2020}) 16. Qxd4 {[%emt 0:00:31]} Rxc1 {[%emt 0:07:30]} 17. Rxc1 {[%emt 0:00:27]} Bxf3 {[%emt 0:00:07]} 18. Bxf3 {[%emt 0:03:15]} ({But not} 18. gxf3 Qxd4 19. exd4 Rd8 $15) 18... Rd8 {[%emt 0:01:14] White must now prevent ...Ne5.} 19. Qxf6 {[%emt 0:27:31]} Nxf6 $11 {[%emt 0:00:16][%mdl 4096] Endgame KRB-KRN} 20. Rc7 {[%emt 0:00:25]} Rd7 {[%emt 0:07:31]} 21. Rc8+ {[%emt 0:00:16]} Kh7 {[%emt 0:00:07]} 22. Rc2 {[%emt 0:00:19] Against Rd2} g5 {[%emt 0:01:21]} 23. h3 {[%emt 0:00:41]} Kg7 {[%emt 0:02:16]} 24. Kf1 {[%emt 0:00:21]} Ng8 {[%emt 0:01:06]} 25. Ke2 {[%emt 0:01:12]} Ne7 {[%emt 0:00:07]} 26. b4 {[%emt 0:01:13]} Ng6 {[%emt 0:07:50]} 27. Rc8 {[%emt 0:02:13]} Ne7 {[%emt 0:05:08]} 28. Ra8 {[%emt 0:03:43]} Nf5 {[%emt 0:00:11]} 29. a4 {[%emt 0:01:28]} Rc7 {[%emt 0:00:11]} 30. Kd3 {[%emt 0:02:24]} Nh4 {[%emt 0:02:11]} 31. Ke4 {[%emt 0:48:12] Weighted Error Value: White=0.02 (flawless) /Black=0.02 (flawless)} (31. Be4 $11) 1/2-1/2

[Event "Mongolian Championship Open 2022"]
[Site "Chingis Khentii"]
[Date "2022.05.15"]
[Round "3.6"]
[White "Gan-Erdene, Sugar"]
[Black "Boldoo, Erdenepurev"]
[Result "1-0"]
[ECO "B48"]
[WhiteElo "2419"]
[BlackElo "2371"]
[Annotator "TA"]
[PlyCount "61"]
[EventDate "2022.05.12"]
[EventType "tourn"]
[EventCountry "MGL"]
[SourceTitle "playchess.com"]
[Source "ChessBase"]
[SourceQuality "1"]
[TimeControl "40/5400+30:1800+30"]

{[%evp 11,61,22,24,23,38,9,33,39,47,36,40,31,34,20,22,10,19,0,0,0,20,8,40,33,37,46,39,29,32,33,75,35,62,70,83,69,101,108,127,123,172,159,397,398,392,390,614,608,652,660,687,694]} 1. e4 {[%emt 0:00:04]} c5 {[%emt 0:00:09]} 2. Nf3 {[%emt 0:00:05]} e6 {[%emt 0:00:06]} 3. d4 {[%emt 1:31:51]} cxd4 {[%emt 0:00:06]} 4. Nxd4 {[%emt 0:00:00]} Nc6 {[%emt 0:00:06]} 5. Nc3 {[%emt 0:00:00]} Qc7 {[%emt 0:00:32]} 6. Be3 {[%emt 0:00:00]} a6 {[%emt 0:00:11]} 7. Qf3 {[%emt 0:00:00] B48: Sicilian: Taimanov: 5 Nc3 Qc7 6 Be3 a6 without Be2.} b5 {[%emt 0:01:43]} 8. Qg3 $1 {[%emt 0:00:00][%mdl 4] is currently scoring better than 8.Nxc6.} Qxg3 {[%emt 0:03:24]} 9. hxg3 {[%emt 0:00:00] White is slightly better.} ({Much weaker is} 9. fxg3 Bb7 $11) 9... Bb7 {[%emt 0:00:06]} 10. Nxc6 {[%emt 0:00:00]} Bxc6 {[%emt 0:00:02]} 11. Bd3 {[%emt 0:00:00]} Bb4 {[%emt 0:01:16] [#]} 12. Bd2 $146 {[%emt 0:00:00]} ({Predecessor:} 12. f3 f6 13. Kf2 Bxc3 14. bxc3 Ne7 15. g4 d5 16. exd5 Nxd5 17. Bd2 Kf7 18. a4 bxa4 {½-½ (32) Koelewijn,A (2153)-Brown,K (2069) ICCF email 2015}) 12... Bc5 {[%emt 0:02:09]} 13. f3 {[%emt 0:00:00]} Ne7 {[%emt 0:01:03]} 14. O-O-O {[%emt 0:00:00]} f6 {[%emt 0:03:09]} 15. g4 {[%emt 0:00:00]} Kf7 {[%emt 0:02:43]} 16. Rh5 {[%emt 0:00:00]} Bd6 {[%emt 0:04:13]} 17. g5 {[%emt 0:00:00]} fxg5 {[%emt 0:13:17]} 18. Bxg5 {[%emt 0:00:00]} Bc7 {[%emt 0:00:30]} 19. Ne2 {[%emt 0:00:00]} h6 {[%emt 0:05:09]} 20. Bd2 {[%emt 0:00:00]} Rhf8 {[%emt 0:06:20]} 21. Bb4 {[%emt 0:00:00]} Ke8 {[%emt 0:01:48]} 22. Kb1 {[%emt 0:00:00]} Rf7 {[%emt 0:01:25]} 23. c4 {[%emt 0:00:00][%cal Rc4b5]} Rb8 {[%emt 0:04:10] [#] Hoping for ...bxc4.} 24. cxb5 {[%emt 0:00:00] White is more active.} Bxb5 {[%emt 0:02:01]} 25. Bxb5 {[%emt 0:00:00]} axb5 {[%emt 0:00:06]} (25... Rxb5 $16 26. Rxb5 axb5) 26. Nc3 $18 {[%emt 0:00:00]} d5 $2 {[%emt 0:06:17] This costs Black the game.} (26... Nc6 $16) 27. exd5 {[%emt 0:00:00]} exd5 {[%emt 0:00:34]} 28. Nxd5 {[%emt 0:00:00]} Nxd5 {[%emt 0:02:07]} (28... Nc8 $142 29. Re1+ Kd7 30. Nxc7 Kxc7 31. Rc5+ Kb6) 29. Rhxd5 {[%emt 0:00:00] [#] White threatens Re1+ and mate. White is clearly winning.} ({Less strong is} 29. Rdxd5 Rb6 30. a3 (30. Rxb5 Rg6 $16) 30... g5 $18) 29... Bg3 {[%emt 0:00:36] Against Re1+} 30. R1d4 {[%emt 0:00:00] Threatening mate with Re4+.} Rc7 {[%emt 0:04:23]} 31. Rf5 {[%emt 0:00:00] Weighted Error Value: White=0.06 (flawless) /Black=0.32} 1-0

[Event "Mongolian Championship Open 2022"]
[Site "Chingis Khentii"]
[Date "2022.05.15"]
[Round "4.1"]
[White "Bilguun, Sumiya"]
[Black "Amilal Munkhdalai"]
[Result "1-0"]
[ECO "B30"]
[WhiteElo "2454"]
[BlackElo "2033"]
[Annotator "TA"]
[PlyCount "59"]
[EventDate "2022.05.12"]
[EventType "tourn"]
[EventCountry "MGL"]
[SourceTitle "playchess.com"]
[Source "ChessBase"]
[SourceQuality "1"]
[TimeControl "40/5400+30:1800+30"]

{[%evp 11,59,-97,-87,-96,-77,-77,-71,-77,-61,-67,-76,-84,-25,-22,-51,-44,-15,-33,-31,-24,-25,-28,-38,-18,0,0,217,210,207,215,314,305,445,363,460,359,371,377,494,429,1102,313,1511,1343,29976,29977,29977,29970,29986,29987]} 1. e4 {[%emt 0:00:14]} c5 {[%emt 0:00:07]} 2. Nc3 {[%emt 0:01:10]} Nc6 {[%emt 0:00:04]} 3. Bb5 {[%emt 0:00:05]} Nd4 {[%emt 0:00:07]} 4. Nf3 {[%emt 0:00:05]} e6 {[%emt 0:00:08]} 5. Nxd4 {[%emt 0:12:23]} cxd4 {[%emt 0:00:05]} 6. Ne2 {[%emt 0:00:05] [#]} Qg5 $1 {[%emt 0:00:10][%csl LRb5,LRg2]} 7. Bc4 {[%emt 0:13:59] B30: Sicilian: 2...Nc6 3 Bb5, lines without ...g6.} Qxg2 {[%emt 0:00:08]} (7... b5 $6 8. d3 Qxg2 9. Rg1 Qxh2 10. Bf4 $15) 8. Ng3 {[%emt 0:00:23] [#]} Qh3 {[%emt 0:00:10] [#]} 9. Qe2 $146 {[%emt 0:07:34] Black is better.} ({Predecessor:} 9. Qh5 Qxh5 10. Nxh5 Nf6 11. Nxf6+ gxf6 12. d3 Bd6 13. Bd2 b6 14. f3 Bb7 15. Kf2 {0-1 (31) Arribas Robaina,M (2321)-Gonzalez Vidal,Y (2525) Puebla 2013}) 9... Ne7 {[%emt 0:11:00]} 10. d3 {[%emt 0:15:59]} Ng6 {[%emt 0:16:55]} 11. Bd2 {[%emt 0:00:52] Inhibits Bb4.} Ne5 {[%emt 0:08:59]} ({Black should play} 11... b5 $17 12. Bb3 (12. Bxb5 Rb8 $15) 12... Bc5) 12. f4 {[%emt 0:00:38]} Nxc4 {[%emt 0:04:55]} 13. dxc4 {[%emt 0:00:17]} d6 {[%emt 0:00:13]} 14. c3 {[%emt 0:11:25]} e5 {[%emt 0:11:08] Hoping for ...exf4.} 15. f5 {[%emt 0:01:25]} dxc3 {[%emt 0:10:52]} 16. Bxc3 {[%emt 0:00:22]} h5 {[%emt 0:00:30]} 17. O-O-O {[%emt 0:04:05]} Qg4 {[%emt 0:02:27]} 18. Qd3 {[%emt 0:00:40]} g6 $2 {[%emt 0:00:28]} (18... Bd7 $1 $11 {and Black has nothing to worry.}) 19. Rhg1 $18 {[%emt 0:05:38][%cal Oc4c5][%mdl 1024] Threatens to win with c5! White has strong compensation. Active counter play!} Qg5+ {[%emt 0:02:12]} 20. Kb1 {[%emt 0:00:58][%cal Oc4c5] And now c5! would win.} Qf6 {[%emt 0:03:41]} (20... h4 $142) 21. c5 $1 {[%emt 0:01:39]} h4 {[%emt 0:12:31]} (21... Bd7 {is a better defense.} 22. cxd6 h4) 22. Nf1 {[%emt 0:11:00]} ({Less strong is} 22. Qb5+ Bd7 23. Qxb7 Rc8 $16) 22... gxf5 {[%emt 0:01:05]} 23. cxd6 {[%emt 0:00:07] White wants to mate with d7+.} Bd7 {[%emt 0:00:09]} 24. Ne3 {[%emt 0:00:42] Black must now prevent Nd5.} ({Not} 24. Qd5 Qe6 $18) 24... O-O-O {[%emt 0:02:49]} 25. Ba5 {[%emt 0:02:06] aiming for Qc3+.} fxe4 {[%emt 0:01:13]} (25... Bc6 $142 26. Bxd8 Qxd8) 26. Bxd8 $2 {[%emt 0:00:27]} (26. Qc3+ Bc6 27. Bxd8 Qxd8 28. d7+ Kb8 29. Qxe5+ Bd6 30. Qxd6+ Ka8 31. Qh6) 26... Kxd8 $2 {[%emt 0:00:08]} (26... Qxd8 27. Qxe4 f6) 27. Qd5 {[%emt 0:02:52]} Qe6 {[%emt 0:02:43]} 28. Qxb7 {[%emt 0:01:38] White mates.} Bxd6 {[%emt 0:00:08]} 29. Qa8+ {[%emt 0:00:12][%mdl 64] Skewer} Bc8 {[%emt 0:00:05]} 30. Qc6 {[%emt 0:00:09] Weighted Error Value: White=0.48/Black=0.70} 1-0